bitfinex/quotes_BTCUSD_20250829
["timestamp","ask_amount","ask_price","bid_price","bid_amount"]
[1756440420041,0.52388709,112030.0,112020.0,0.15284]
[1756440420475,0.52388709,112030.0,112020.0,0.003]
[1756440420678,0.52388709,112030.0,112020.0,0.15284]
[1756440421017,0.59501915,112030.0,112020.0,0.15284]
[1756440421189,0.59501915,112030.0,112020.0,0.001]
[1756440421418,0.17853954,112020.0,112010.0,0.3387318]
[1756440421618,0.52390244,112020.0,112010.0,0.4885718]
[1756440421917,0.52390244,112020.0,112010.0,0.4907218]
[1756440422586,0.29005575,112020.0,112010.0,0.4907218]
[1756440422769,0.52390244,112020.0,112010.0,0.40242548]
[1756440423084,0.52390244,112020.0,112010.0,0.25258548]
[1756440423280,0.52390244,112020.0,112010.0,0.40242548]
[1756440423616,0.52390244,112020.0,112010.0,0.40442548]
[1756440424007,0.52390244,112020.0,112010.0,0.22372]
[1756440424414,0.52390244,112020.0,112010.0,0.22472]
[1756440424590,0.52390244,112020.0,112010.0,0.40327548]
[1756440425183,0.52390244,112020.0,112010.0,0.40542548]
[1756440425596,0.17853954,112020.0,112010.0,0.22687]
[1756440425790,0.52390244,112020.0,112010.0,0.40542548]
[1756440428029,0.52390244,112020.0,112010.0,0.22687]
[1756440428227,0.52390244,112020.0,112010.0,0.22472]
[1756440429335,0.52390244,112020.0,112010.0,0.40542548]
[1756440429859,0.52390244,112020.0,112010.0,0.22687]
[1756440430273,0.52390244,112020.0,112010.0,0.40542548]
[1756440430873,0.3453629,112020.0,112010.0,0.25558548]
[1756440431162,0.52390244,112020.0,112010.0,0.40538548]
[1756440431362,0.17853954,112020.0,112010.0,0.75074838]
[1756440433913,0.17853954,112020.0,112010.0,0.60094838]
[1756440434117,0.17853954,112020.0,112010.0,0.75074838]
[1756440434520,0.17853954,112020.0,112010.0,0.40538548]
[1756440434660,0.17853954,112020.0,112010.0,0.75074838]
[1756440438651,0.17853954,112020.0,112010.0,0.60094838]
[1756440438851,0.17853954,112020.0,112010.0,0.75074838]
[1756440440453,0.17853954,112020.0,112010.0,0.40538548]
[1756440445448,0.17853954,112020.0,112010.0,0.75074838]
[1756440445652,0.17853954,112020.0,112010.0,0.40538548]
[1756440445893,0.17852419,112030.0,112010.0,0.60094838]
[1756440446094,0.17852419,112030.0,112020.0,0.00319]
[1756440446241,0.17852419,112030.0,112020.0,0.15504]
[1756440448000,0.17852419,112030.0,112020.0,0.33357954]
[1756440448138,0.17852419,112030.0,112020.0,0.15504]
[1756440451234,0.17852419,112030.0,112020.0,0.33357954]
[1756440451361,0.17852419,112030.0,112020.0,0.67832954]
[1756440452247,0.17852419,112030.0,112020.0,0.33357954]
[1756440452380,0.17852419,112030.0,112020.0,0.67832954]
[1756440452584,0.52327419,112030.0,112020.0,0.33357954]
[1756440455073,0.17852419,112030.0,112020.0,0.33357954]
[1756440455332,0.55427453,112040.0,112020.0,0.67832954]
[1756440455533,0.55427453,112040.0,112030.0,0.00319]
[1756440456042,0.55427453,112040.0,112030.0,0.00524]
[1756440456449,0.89902453,112040.0,112030.0,0.00524]
[1756440457027,0.711591,112040.0,112030.0,0.00524]
[1756440457229,0.89011321,112040.0,112030.0,0.00524]
[1756440457815,0.89903859,112040.0,112030.0,0.00524]
[1756440458249,0.55428859,112040.0,112030.0,0.00524]
[1756440458449,0.89903859,112040.0,112030.0,0.00524]
[1756440459439,0.89908618,112040.0,112030.0,0.00524]
[1756440462005,1.24383618,112040.0,112030.0,0.00524]
[1756440464009,1.24383618,112040.0,112030.0,0.1837636]
[1756440464010,0.17855526,112040.0,112030.0,0.1837636]
[1756440464242,0.52330526,112040.0,112030.0,0.1837636]
[1756440467798,0.52330526,112040.0,112030.0,0.00524]
[1756440468034,0.1785236,112030.0,112020.0,0.24856895]
[1756440468243,0.5232736,112030.0,112020.0,0.48658527]
[1756440468457,0.17855526,112040.0,112020.0,0.48840527]
[1756440468665,0.52330526,112040.0,112030.0,0.1785236]
[1756440468856,0.86805526,112040.0,112020.0,0.48339527]
[1756440469063,0.34475,112030.0,112020.0,0.48339527]
[1756440469274,0.34475,112030.0,112020.0,0.48840527]
[1756440469488,0.34475,112030.0,112020.0,0.48940527]
[1756440470353,0.5232736,112030.0,112020.0,0.48940527]
[1756440470772,0.34475,112030.0,112020.0,0.49140527]
[1756440471610,0.34475,112030.0,112020.0,0.49136527]
[1756440472578,0.5232736,112030.0,112020.0,0.49136527]
[1756440475453,0.34475,112030.0,112020.0,0.34168527]
[1756440475663,0.5232736,112030.0,112020.0,0.49136527]
[1756440476222,0.34475,112030.0,112020.0,0.49136527]
[1756440476845,0.5232736,112030.0,112020.0,0.49136527]
[1756440477041,0.34475,112030.0,112020.0,0.49136527]
[1756440477289,0.5232736,112030.0,112020.0,0.49136527]
[1756440477496,0.34475,112030.0,112020.0,0.49136527]
[1756440477850,0.34475,112030.0,112020.0,0.45136286]
[1756440478117,0.5232736,112030.0,112020.0,0.45136286]
[1756440478776,0.34475,112030.0,112020.0,0.45136286]
[1756440478985,0.5232736,112030.0,112020.0,0.45136286]
[1756440481376,1.31639992,112030.0,112020.0,0.003]
[1756440481581,1.84311687,112030.0,112020.0,0.15268]
[1756440481757,1.95235201,112030.0,112020.0,0.003]
[1756440481898,1.9346773,112030.0,112020.0,0.003]
[1756440482339,2.00214796,112030.0,112020.0,0.003]
[1756440482552,1.98540677,112030.0,112020.0,0.003]
[1756440482753,2.02141679,112030.0,112020.0,0.002]
[1756440482971,0.17858737,111990.0,111980.0,0.00301]
[1756440483189,0.17860332,111980.0,111970.0,0.07165]
[1756440483400,0.52373425,111980.0,111970.0,0.33643532]
[1756440483829,0.52373425,111980.0,111970.0,0.33843532]
[1756440484037,0.52373425,111980.0,111970.0,0.250139]
[1756440484250,0.52373425,111980.0,111970.0,0.22343282]
[1756440484487,0.54128516,111980.0,111970.0,0.22143282]
[1756440484909,0.54128516,111980.0,111970.0,0.22443282]
[1756440485122,0.54128516,111980.0,111970.0,0.00014282]
[1756440485326,0.54128516,111980.0,111970.0,0.14978282]
[1756440485538,0.54128516,111980.0,111970.0,0.15278282]
[1756440485953,0.54128516,111980.0,111970.0,0.15578282]
[1756440486158,0.88128516,111980.0,111970.0,0.15578282]
[1756440486368,1.29704691,111980.0,111970.0,0.00614282]
[1756440486569,1.0402123,111980.0,111970.0,0.00614282]
[1756440486784,1.41261932,111980.0,111970.0,0.00614282]
[1756440487213,1.35053761,111980.0,111970.0,0.00614282]
[1756440487440,1.46278632,111980.0,111970.0,0.00614282]
[1756440487842,1.37449,111980.0,111970.0,0.00614282]
[1756440488305,1.34122296,111980.0,111970.0,1e-08]
[1756440488488,1.40570265,111980.0,111970.0,1e-08]
[1756440488692,1.45570265,111980.0,111970.0,1e-08]
[1756440488904,1.64463088,111980.0,111970.0,1e-08]
[1756440489066,1.7329272,111980.0,111970.0,1e-08]
[1756440489484,0.17866714,111940.0,111930.0,0.03405]
[1756440489732,0.52379807,111940.0,111930.0,0.003153]
[1756440489905,0.52379807,111940.0,111930.0,0.005153]
[1756440490381,0.89066007,111940.0,111930.0,0.005153]
[1756440490570,0.89066007,111940.0,111930.0,0.003153]
[1756440491364,0.89066007,111940.0,111930.0,0.005153]
[1756440492535,0.89166007,111940.0,111930.0,0.005153]
[1756440492734,0.96563658,111940.0,111930.0,0.005153]
[1756440493324,0.89166007,111940.0,111930.0,0.005153]
[1756440505944,0.86479807,111940.0,111930.0,0.005153]
[1756440508200,0.88768711,111940.0,111930.0,0.005153]
[1756440509217,0.91522626,111940.0,111930.0,0.005153]
[1756440510218,0.91523638,111940.0,111930.0,0.005153]
[1756440510620,0.97451659,111940.0,111930.0,0.003153]
[1756440510833,0.91523638,111940.0,111930.0,0.003153]
[1756440511063,0.91523638,111940.0,111930.0,0.005153]
[1756440512440,0.93912541,111940.0,111930.0,0.005153]
[1756440513623,0.91416034,111940.0,111930.0,0.005153]
[1756440513820,0.9392413,111940.0,111930.0,0.005153]
[1756440515214,0.9392413,111940.0,111930.0,0.154873]
[1756440515496,0.9714595,111940.0,111930.0,0.154873]
[1756440516162,0.9714595,111940.0,111930.0,0.005153]
[1756440516370,0.9714595,111940.0,111930.0,0.000143]
[1756440516802,0.9714595,111940.0,111930.0,0.003223]
[1756440517463,0.94757047,111940.0,111930.0,0.003223]
[1756440518970,0.94757047,111940.0,111930.0,0.000143]
[1756440519405,1.03586679,111940.0,111930.0,0.000143]
[1756440520921,0.94757047,111940.0,111930.0,0.003223]
[1756440522481,0.97172584,111940.0,111930.0,0.003223]
[1756440524115,0.97172584,111940.0,111930.0,0.005223]
[1756440524290,0.97182732,111940.0,111930.0,0.005223]
[1756440525438,0.97182738,111940.0,111930.0,0.005223]
[1756440531206,0.93960918,111940.0,111930.0,0.005223]
[1756440532972,0.93960918,111940.0,111930.0,0.003223]
[1756440533306,1.28533793,111940.0,111930.0,0.003223]
[1756440533520,1.26118256,111940.0,111930.0,0.003223]
[1756440534801,1.25489361,111940.0,111930.0,0.003223]
[1756440535009,1.26118547,111940.0,111930.0,0.003223]
[1756440535243,1.24440912,111940.0,111930.0,0.003223]
[1756440535858,1.24440912,111940.0,111930.0,0.005363]
[1756440537130,1.22520612,111940.0,111930.0,0.005363]
[1756440538181,1.21891499,111940.0,111930.0,0.005363]
[1756440539199,1.21052682,111940.0,111930.0,0.005363]
[1756440539988,0.341,111940.0,111930.0,0.27457595]
[1756440540263,0.86509698,111940.0,111930.0,0.09365932]
[1756440540478,1.21052682,111940.0,111930.0,0.27234242]
[1756440541512,0.86501643,111940.0,111930.0,0.27234242]
[1756440541925,0.86501643,111940.0,111930.0,0.42198242]
[1756440544106,0.51966714,111940.0,111930.0,0.42198242]
[1756440544323,0.86501643,111940.0,111930.0,0.42198242]
[1756440547360,0.86501643,111940.0,111930.0,0.49070242]
[1756440549692,0.68634929,111940.0,111930.0,0.49070242]
[1756440550298,0.86501643,111940.0,111930.0,0.49070242]
[1756440552339,0.51966714,111940.0,111930.0,0.49070242]
[1756440552547,0.86501643,111940.0,111930.0,0.49070242]
[1756440553277,0.86501643,111940.0,111930.0,0.34106242]
[1756440553715,0.86501643,111940.0,111930.0,0.49066242]
[1756440554478,0.86501643,111940.0,111930.0,0.34106242]
[1756440554614,0.86501643,111940.0,111930.0,0.49066242]
[1756440555059,0.86501643,111940.0,111930.0,0.34106242]
[1756440555484,0.86501643,111940.0,111930.0,0.49066242]
[1756440559055,0.51966714,111940.0,111930.0,0.49066242]
[1756440559253,0.86501643,111940.0,111930.0,0.49066242]
[1756440563440,1.21036506,111940.0,111930.0,0.49066242]
[1756440565180,1.02239801,111940.0,111930.0,0.49066242]
[1756440565388,0.86936506,111940.0,111930.0,0.49066242]
[1756440566425,0.86936506,111940.0,111930.0,0.51752042]
[1756440567873,0.86936506,111940.0,111930.0,0.36792042]
[1756440568193,0.17866714,111940.0,111930.0,0.51748042]
[1756440568399,0.86936506,111940.0,111930.0,0.51748042]
[1756440568606,0.86936506,111940.0,111930.0,0.33879732]
[1756440568811,0.86936506,111940.0,111930.0,0.068863]
[1756440569070,0.93999588,111940.0,111930.0,0.218423]
[1756440569271,1.63745441,111940.0,111930.0,0.000143]
[1756440569616,1.63745441,111940.0,111930.0,0.149703]
[1756440570235,1.27999588,111940.0,111930.0,0.149703]
[1756440570462,1.62534484,111940.0,111930.0,0.149703]
[1756440570694,1.27999588,111940.0,111930.0,0.149703]
[1756440570903,1.30685788,111940.0,111930.0,0.149703]
[1756440571659,1.65220684,111940.0,111930.0,0.149703]
[1756440574285,1.80176684,111940.0,111930.0,0.000143]
[1756440574690,1.82571923,111940.0,111930.0,0.000143]
[1756440574899,1.93790373,111940.0,111930.0,0.000143]
[1756440575052,1.95884255,111940.0,111930.0,0.000143]
[1756440579213,1.91100198,111940.0,111930.0,0.000143]
[1756440579419,1.9992983,111940.0,111930.0,0.000143]
[1756440579886,1.8497383,111940.0,111930.0,0.000143]
[1756440580094,1.9992983,111940.0,111930.0,0.000143]
[1756440581239,3.03534518,111940.0,111930.0,0.000143]
[1756440581422,3.08318575,111940.0,111930.0,0.000143]
[1756440582231,3.09991737,111940.0,111930.0,0.000143]
[1756440582867,3.09991444,111940.0,111930.0,0.000143]
[1756440584337,3.11454999,111940.0,111930.0,0.000143]
[1756440585534,3.11654999,111940.0,111930.0,0.000143]
[1756440585978,2.96898999,111940.0,111930.0,0.000143]
[1756440586190,3.11654999,111940.0,111930.0,0.000143]
[1756440586395,3.09354667,111940.0,111930.0,0.000143]
[1756440586596,3.10181736,111940.0,111930.0,0.000143]
[1756440586835,3.08718575,111940.0,111930.0,0.000143]
[1756440587040,3.11853921,111940.0,111930.0,0.000143]
[1756440590761,3.04790839,111940.0,111930.0,0.000143]
[1756440590961,2.89834839,111940.0,111930.0,0.000143]
[1756440591193,3.04790839,111940.0,111930.0,0.000143]
[1756440591508,2.89834839,111940.0,111930.0,0.000143]
[1756440591713,3.04790839,111940.0,111930.0,0.000143]
[1756440591986,3.02402021,111940.0,111930.0,0.000143]
[1756440592407,3.00006782,111940.0,111930.0,0.000143]
[1756440593935,3.00006511,111940.0,111930.0,0.000143]
[1756440595455,3.01933278,111940.0,111930.0,0.000143]
[1756440597069,2.86977278,111940.0,111930.0,0.000143]
[1756440597268,3.01097732,111940.0,111930.0,0.000143]
[1756440597471,2.86979649,111940.0,111930.0,0.000143]
[1756440597666,3.01935649,111940.0,111930.0,0.000143]
[1756440599397,3.01936585,111940.0,111930.0,0.000143]
[1756440600318,1.87408383,111940.0,111930.0,0.005413]
[1756440600543,1.85481616,111940.0,111930.0,0.005413]
[1756440600730,1.87575498,111940.0,111930.0,0.005413]
[1756440601333,1.70525616,111940.0,111930.0,0.005413]
[1756440601682,1.85481616,111940.0,111930.0,0.005413]
[1756440601881,1.70525616,111940.0,111930.0,0.005413]
[1756440602291,1.3599072,111940.0,111930.0,0.005413]
[1756440602593,1.70525616,111940.0,111930.0,0.005413]
[1756440603771,1.85481616,111940.0,111930.0,0.005413]
[1756440604466,1.27161088,111940.0,111930.0,0.005413]
[1756440604683,1.26533599,111940.0,111930.0,0.005413]
[1756440604898,1.25696947,111940.0,111930.0,0.005413]
[1756440605161,1.23010747,111940.0,111930.0,0.005413]
[1756440605311,1.21136506,111940.0,111930.0,0.005413]
[1756440605532,1.20936506,111940.0,111930.0,0.005413]
[1756440605737,1.21036506,111940.0,111930.0,0.005413]
[1756440605953,0.51966714,111940.0,111930.0,0.005413]
[1756440606159,1.21036506,111940.0,111930.0,0.005413]
[1756440606378,1.20936506,111940.0,111930.0,0.005413]
[1756440609521,1.20936506,111940.0,111930.0,0.1840961]
[1756440610078,1.20936506,111940.0,111930.0,0.005413]
[1756440611007,1.20936506,111940.0,111930.0,0.154933]
[1756440611451,1.20936506,111940.0,111930.0,0.005413]
[1756440612504,1.20936506,111940.0,111930.0,0.154933]
[1756440620327,1.0040325,111940.0,111930.0,0.154933]
[1756440620535,1.18269964,111940.0,111930.0,0.154893]
[1756440622528,1.18269964,111940.0,111930.0,0.005413]
[1756440622729,1.18269964,111940.0,111930.0,0.154893]
[1756440631384,1.18269964,111940.0,111930.0,0.154853]
[1756440635215,0.49200172,111940.0,111930.0,0.154853]
[1756440635628,1.18269964,111940.0,111930.0,0.154853]
[1756440636047,1.18269964,111940.0,111930.0,0.005413]
[1756440636268,1.18269964,111940.0,111930.0,0.154853]
[1756440637554,1.18269964,111940.0,111930.0,0.152753]
[1756440638095,1.18269964,111940.0,111930.0,0.154713]
[1756440638663,1.18269964,111940.0,111930.0,0.005273]
[1756440638847,1.18269964,111940.0,111930.0,0.154713]
[1756440646322,0.34,111940.0,111930.0,0.42392595]
[1756440646532,0.68534896,111940.0,111930.0,0.42169242]
[1756440646750,0.68534896,111940.0,111930.0,0.44855042]
[1756440647556,0.68534896,111940.0,111930.0,0.45055042]
[1756440648487,0.68534896,111940.0,111930.0,0.45355042]
[1756440649071,0.8640161,111940.0,111930.0,0.30411042]
[1756440649276,0.8640161,111940.0,111930.0,0.45351042]
[1756440649687,1.20936506,111940.0,111930.0,0.45351042]
[1756440651693,1.03069792,111940.0,111930.0,0.45351042]
[1756440651901,0.34,111940.0,111930.0,0.45351042]
[1756440652103,0.68534896,111940.0,111930.0,0.45351042]
[1756440652503,0.8640161,111940.0,111930.0,0.45351042]
[1756440652880,1.20936506,111940.0,111930.0,0.29898042]
[1756440653055,1.20936506,111940.0,111930.0,0.26969732]
[1756440653877,1.20936506,111940.0,111930.0,0.27270732]
[1756440654447,0.51866714,111940.0,111930.0,0.45139042]
[1756440654654,1.20936506,111940.0,111930.0,0.45139042]
[1756440655449,0.51866714,111940.0,111930.0,0.45343042]
[1756440655650,1.20936506,111940.0,111930.0,0.45343042]
[1756440659062,1.20936506,111940.0,111930.0,0.45339042]
[1756440659571,1.20936506,111940.0,111930.0,0.52207042]
[1756440660405,1.20936506,111940.0,111930.0,0.37271042]
[1756440660641,1.20936506,111940.0,111930.0,0.52207042]
[1756440666340,1.20936506,111940.0,111930.0,0.19402732]
[1756440666689,1.20936506,111940.0,111930.0,0.250041]
[1756440666905,1.64301034,111940.0,111930.0,0.223183]
[1756440667109,1.64301034,111940.0,111930.0,0.005143]
[1756440667314,1.64301034,111940.0,111930.0,0.154503]
[1756440669922,1.64301034,111940.0,111930.0,0.005143]
[1756440670129,1.64301034,111940.0,111930.0,0.154503]
[1756440670702,1.88066666,111940.0,111930.0,0.005143]
[1756440670892,3.01690971,111940.0,111930.0,0.005143]
[1756440671093,3.04377671,111940.0,111930.0,0.005143]
[1756440671508,2.89441671,111940.0,111930.0,0.003143]
[1756440671719,3.04377671,111940.0,111930.0,0.000143]
[1756440671891,3.04377671,111940.0,111930.0,0.001143]
[1756440672094,3.04477671,111940.0,111930.0,0.001143]
[1756440672309,3.02911521,111940.0,111930.0,0.001143]
[1756440672517,3.04576407,111940.0,111930.0,0.001143]
[1756440672888,3.04376407,111940.0,111930.0,0.001143]
[1756440673081,3.04576407,111940.0,111930.0,0.001143]
[1756440673280,1.65656863,111940.0,111930.0,0.001143]
[1756440673485,1.65029055,111940.0,111930.0,0.001143]
[1756440673682,1.65029055,111940.0,111930.0,0.000143]
[1756440673936,1.65229055,111940.0,111930.0,0.000143]
[1756440674891,1.66692991,111940.0,111930.0,0.000143]
[1756440675014,1.66492991,111940.0,111930.0,0.000143]
[1756440675216,2.10652991,111940.0,111930.0,0.000143]
[1756440675421,2.10852991,111940.0,111930.0,0.000143]
[1756440676108,1.95916991,111940.0,111930.0,0.000143]
[1756440676304,2.09389055,111940.0,111930.0,0.000143]
[1756440677466,1.94453055,111940.0,111930.0,0.000143]
[1756440677669,2.09389055,111940.0,111930.0,0.000143]
[1756440678046,2.10851918,111940.0,111930.0,0.000143]
[1756440678452,2.09389055,111940.0,111930.0,0.000143]
[1756440678757,2.09389055,111940.0,111910.0,0.00301]
[1756440678758,0.34,111910.0,111900.0,0.00293]
[1756440678958,1.0312691,111910.0,111900.0,0.00340698]
[1756440679158,1.20999859,111910.0,111900.0,0.00340698]
[1756440679919,1.31137261,111910.0,111900.0,0.00047698]
[1756440680102,1.31137261,111910.0,111900.0,0.00541698]
[1756440680249,1.31137261,111910.0,111900.0,0.00741698]
[1756440680658,1.31137261,111910.0,111900.0,0.00841698]
[1756440680882,1.46073261,111910.0,111900.0,0.00841698]
[1756440682870,1.31137261,111910.0,111900.0,0.00841698]
[1756440683550,1.31137261,111910.0,111900.0,0.00347698]
[1756440683972,1.46073261,111910.0,111900.0,0.00347698]
[1756440684332,1.31137261,111910.0,111900.0,0.00640698]
[1756440684534,1.22307629,111910.0,111900.0,0.00347698]
[1756440684746,1.37243629,111910.0,111900.0,0.00347698]
[1756440684959,1.39638868,111910.0,111900.0,0.00347698]
[1756440686143,1.484685,111910.0,111900.0,0.00347698]
[1756440686362,1.59985332,111910.0,111900.0,0.00347698]
[1756440686565,2.06239214,111910.0,111900.0,0.00347698]
[1756440687724,2.08628031,111910.0,111900.0,0.00347698]
[1756440688532,2.1029728,111910.0,111900.0,0.00347698]
[1756440689962,2.10297308,111910.0,111900.0,0.00347698]
[1756440690671,2.10301308,111910.0,111900.0,0.00347698]
[1756440691412,1.95361308,111910.0,111900.0,0.00347698]
[1756440691619,2.07912491,111910.0,111900.0,0.00347698]
[1756440692334,2.08538442,111910.0,111900.0,0.00347698]
[1756440693173,1.24471532,111910.0,111900.0,0.00347698]
[1756440693510,2.10461757,111910.0,111900.0,0.00347698]
[1756440695487,2.11296948,111910.0,111900.0,0.00347698]
[1756440695918,1.67136948,111910.0,111900.0,0.00347698]
[1756440696809,1.64633158,111910.0,111900.0,0.00347698]
[1756440697016,1.67139676,111910.0,111900.0,0.00347698]
[1756440697279,1.52199676,111910.0,111900.0,0.00347698]
[1756440697484,2.01744702,111910.0,111900.0,0.00640698]
[1756440698447,1.86804702,111910.0,111900.0,0.00640698]
[1756440698673,2.01744702,111910.0,111900.0,0.00640698]
[1756440699645,1.99349463,111910.0,111900.0,0.00640698]
[1756440700270,2.01762842,111910.0,111900.0,0.00640698]
[1756440700472,2.01765771,111910.0,111900.0,0.00640698]
[1756440701235,0.86790824,111910.0,111900.0,0.00841698]
[1756440701443,1.9052276,111910.0,111900.0,0.00841698]
[1756440701653,1.9052276,111910.0,111900.0,0.00640698]
[1756440702417,1.92936139,111910.0,111900.0,0.00640698]
[1756440703947,1.92936517,111910.0,111900.0,0.00640698]
[1756440704151,2.01766149,111910.0,111900.0,0.00640698]
[1756440705953,2.01766149,111910.0,111900.0,0.00347698]
[1756440706541,3.07979671,111900.0,111890.0,0.0002]
[1756440706749,3.39221006,111900.0,111890.0,0.00028506]
[1756440706885,3.50339614,111900.0,111890.0,0.00028506]
[1756440707281,3.53563907,111900.0,111890.0,0.00028506]
[1756440707721,3.53924007,111900.0,111890.0,0.00028506]
[1756440708161,3.51512073,111900.0,111890.0,0.00028506]
[1756440709005,3.51612073,111900.0,111890.0,0.00028506]
[1756440709437,2.47921828,111900.0,111890.0,0.00028506]
[1756440709681,2.47821828,111900.0,111890.0,0.00028506]
[1756440709867,2.52857445,111900.0,111890.0,1e-08]
[1756440711006,2.52859312,111900.0,111890.0,1e-08]
[1756440712359,2.52865489,111900.0,111890.0,1e-08]
[1756440712959,7.49300269,111900.0,111890.0,1e-08]
[1756440714173,7.52515723,111900.0,111890.0,1e-08]
[1756440714353,7.51887564,111900.0,111890.0,1e-08]
[1756440714563,7.52515614,111900.0,111890.0,1e-08]
[1756440715150,7.37575614,111900.0,111890.0,1e-08]
[1756440715347,7.52515614,111900.0,111890.0,1e-08]
[1756440716358,7.4930016,111900.0,111890.0,1e-08]
[1756440716564,7.3436016,111900.0,111890.0,1e-08]
[1756440716767,6.65764895,111900.0,111890.0,0.00521001]
[1756440716971,6.49203997,111900.0,111890.0,0.00521001]
[1756440717217,6.64143997,111900.0,111890.0,0.00521001]
[1756440717434,6.49203997,111900.0,111890.0,0.00521001]
[1756440717654,6.64143997,111900.0,111890.0,0.00521001]
[1756440720542,6.68979614,111900.0,111890.0,0.00521001]
[1756440720789,7.03570823,111900.0,111890.0,0.00521001]
[1756440720986,7.02942433,111900.0,111890.0,0.00521001]
[1756440721277,7.03569656,111900.0,111890.0,0.00521001]
[1756440721663,7.03569654,111900.0,111890.0,0.00317001]
[1756440721867,7.0835371,111900.0,111890.0,1e-08]
[1756440722626,7.05138991,111900.0,111890.0,1e-08]
[1756440723056,0.53970178,111880.0,111870.0,0.00337]
[1756440723258,6.64239832,111880.0,111870.0,0.00341761]
[1756440723435,6.64239832,111880.0,111870.0,0.00545761]
[1756440723641,6.64239832,111880.0,111870.0,0.00341761]
[1756440723957,6.66927932,111880.0,111870.0,0.00341761]
[1756440724593,6.66927932,111880.0,111870.0,0.00441761]
[1756440724741,6.66927932,111880.0,111870.0,0.00645761]
[1756440725168,6.66927932,111880.0,111870.0,0.00745761]
[1756440725571,6.64078119,111880.0,111870.0,0.00745761]
[1756440726397,6.64078119,111880.0,111870.0,0.00541761]
[1756440727007,6.64078119,111880.0,111870.0,0.00745761]
[1756440727660,6.9327231,111880.0,111860.0,0.0002]
[1756440727865,0.51879492,111860.0,111850.0,0.00337]
[1756440728064,6.53504001,111860.0,111850.0,0.0034975]
[1756440728275,6.62333633,111860.0,111850.0,0.0055375]
[1756440728485,6.50082133,111860.0,111850.0,0.0055375]
[1756440728682,6.65026133,111860.0,111850.0,0.0055375]
[1756440728929,6.50082133,111860.0,111850.0,0.0055375]
[1756440729135,6.65026133,111860.0,111850.0,0.0055375]
[1756440730359,1.65369533,111860.0,111850.0,0.0055375]
[1756440730572,1.64741632,111860.0,111850.0,0.0055375]
[1756440730781,1.65366822,111860.0,111850.0,0.0055375]
[1756440731206,1.65466822,111860.0,111850.0,0.0055375]
[1756440731416,1.50522822,111860.0,111850.0,0.0055375]
[1756440731621,1.26973241,111860.0,111850.0,0.0055375]
[1756440731830,1.1994869,111860.0,111850.0,0.0055375]
[1756440733903,1.5394869,111860.0,111850.0,0.0055375]
[1756440737143,1.3900469,111860.0,111850.0,0.0055375]
[1756440737356,1.5394869,111860.0,111850.0,0.0055375]
[1756440737558,1.9810869,111860.0,111850.0,0.0055375]
[1756440738230,1.9810869,111860.0,111850.0,0.0003275]
[1756440738443,2.04549505,111860.0,111850.0,0.0032875]
[1756440738652,2.04549505,111860.0,111850.0,0.0054075]
[1756440739304,0.53976571,111840.0,111830.0,0.00316]
[1756440739518,1.49232221,111840.0,111830.0,0.00320755]
[1756440739739,1.38308707,111840.0,111830.0,0.00532755]
[1756440739957,0.51882689,111840.0,111830.0,0.00532755]
[1756440740221,0.86473898,111840.0,111830.0,0.00532755]
[1756440740637,0.86573898,111840.0,111830.0,0.00532755]
[1756440741275,0.87785616,111840.0,111830.0,0.00532755]
[1756440741494,0.87785616,111840.0,111830.0,0.00756308]
[1756440742553,1.22376825,111840.0,111830.0,0.00532755]
[1756440743402,1.31206457,111840.0,111830.0,0.00532755]
[1756440743607,1.22376825,111840.0,111830.0,0.00532755]
[1756440745004,1.37320825,111840.0,111830.0,0.00532755]
[1756440745222,1.3899411,111840.0,111830.0,0.00532755]
[1756440745451,1.85136336,111840.0,111830.0,0.00024755]
[1756440745665,2.0067773,111840.0,111830.0,0.00024755]
[1756440745879,1.66619321,111840.0,111830.0,0.00024755]
[1756440746055,1.98815291,111840.0,111830.0,0.00024755]
[1756440746267,1.64224082,111840.0,111830.0,0.00024755]
[1756440747358,1.98815291,111840.0,111830.0,0.00024755]
[1756440747566,2.0121053,111840.0,111830.0,0.00024755]
[1756440748352,2.03621452,111840.0,111830.0,0.00024755]
[1756440748579,1.53005633,111840.0,111830.0,0.00532755]
[1756440748782,1.50378951,111840.0,111830.0,0.00532755]
[1756440750799,1.50378951,111840.0,111830.0,0.00320755]
[1756440751008,1.89459281,111840.0,111830.0,0.00024755]
[1756440751227,1.53005633,111840.0,111830.0,0.00024755]
[1756440751445,1.44797383,111840.0,111830.0,0.00236755]
[1756440751724,1.35435145,111840.0,111830.0,0.00532755]
[1756440751937,1.26605513,111840.0,111830.0,0.00532755]
[1756440752123,1.24677807,111840.0,111830.0,0.00532755]
[1756440752359,1.24678096,111840.0,111830.0,0.00532755]
[1756440752791,1.23004666,111840.0,111830.0,0.00532755]
[1756440753002,1.30227248,111840.0,111830.0,0.00532755]
[1756440753218,1.32156311,111840.0,111830.0,0.00532755]
[1756440754046,1.55929943,111840.0,111830.0,0.00532755]
[1756440754253,1.57604602,111840.0,111830.0,0.00532755]
[1756440756051,1.57604602,111840.0,111830.0,0.00320755]
[1756440756698,1.99095854,111840.0,111830.0,0.00024755]
[1756440756910,2.04699234,111840.0,111830.0,0.00024755]
[1756440757135,2.09007309,111840.0,111830.0,0.00024755]
[1756440757348,2.06596387,111840.0,111830.0,0.00024755]
[1756440758406,2.04921728,111840.0,111830.0,0.00024755]
[1756440758617,2.06597503,111840.0,111830.0,0.00024755]
[1756440759252,1.91653503,111840.0,111830.0,0.00024755]
[1756440759528,2.09010034,111840.0,111830.0,0.00024755]
[1756440760131,2.06597503,111840.0,111830.0,0.00024755]
[1756440761134,2.06597503,111840.0,111830.0,1e-08]
[1756440761900,2.0659713,111840.0,111830.0,1e-08]
[1756440762333,2.09008958,111840.0,111830.0,1e-08]
[1756440762702,1.94064958,111840.0,111830.0,1e-08]
[1756440762900,2.09008958,111840.0,111830.0,1e-08]
[1756440763095,7.08665558,111840.0,111830.0,1e-08]
[1756440763297,7.0625373,111840.0,111830.0,1e-08]
[1756440763915,6.9130973,111840.0,111830.0,1e-08]
[1756440764116,7.0866539,111840.0,111830.0,1e-08]
[1756440764537,7.06276573,111840.0,111830.0,1e-08]
[1756440767092,7.03881334,111840.0,111830.0,1e-08]
[1756440767873,7.02669616,111840.0,111830.0,1e-08]
[1756440768547,6.84511053,111840.0,111830.0,1e-08]
[1756440768746,6.99459053,111840.0,111830.0,1e-08]
[1756440769308,7.02673616,111840.0,111830.0,1e-08]
[1756440769511,7.02673616,111840.0,111830.0,0.00315001]
[1756440772487,7.02674863,111840.0,111830.0,0.00315001]
[1756440773277,7.02674931,111840.0,111830.0,0.00315001]
[1756440775756,1.21892095,111840.0,111830.0,0.00521001]
[1756440775967,1.1517236,111840.0,111830.0,0.00521001]
[1756440776177,1.4917236,111840.0,111830.0,0.00521001]